[Event "12th Philadelphia Open"]
[Site "Philadelphia"]
[Date "2018.03.30"]
[Round "5.3"]
[White "Zhou, Jianchao"]
[Black "Sheng, Joshua"]
[Result "1-0"]
[ECO "D02"]
[WhiteElo "2611"]
[BlackElo "2408"]
[PlyCount "67"]
[EventDate "2018.03.??"]
[EventType "swiss"]
[EventRounds "9"]
[EventCountry "USA"]
[TimeControl "5400+30"]
[WhiteClock "0:16:10"]
[BlackClock "0:32:46"]

1. d4 {[%emt 0:00:00]} d5 {[%emt 0:00:00]} 2. Nf3 {[%emt 0:00:00]} Nf6 {
[%emt 0:00:00]} 3. Bf4 {[%emt 0:00:00]} c5 {[%emt 0:00:00]} 4. e3 {[%emt 0:00:
00]} Nc6 {[%emt 0:00:00]} 5. c3 {[%emt 0:00:00]} Bf5 {[%emt 0:00:00]} 6. dxc5 {
[%emt 0:00:00]} e6 {[%emt 0:00:00]} 7. b4 {[%emt 0:00:00]} Be7 {[%emt 0:00:00]}
8. Bb5 {[%emt 0:00:00]} O-O {[%emt 0:00:00]} 9. Nd4 {[%emt 0:00:00]} Nxd4 {
[%emt 0:00:24]} 10. exd4 {[%emt 0:00:00]} a6 {[%emt 0:04:26]} 11. Be2 {[%emt 0:
10:54]} Nd7 {[%emt 0:03:13]} 12. Nd2 {[%emt 0:04:15]} g5 {[%emt 0:06:31]} 13.
Be3 {[%emt 0:08:08]} Bg6 {[%emt 0:05:27]} 14. O-O {[%emt 0:02:45]} Qc7 {
[%emt 0:07:29]} 15. f4 {[%emt 0:09:54]} gxf4 {[%emt 0:02:48]} 16. Bxf4 {
[%emt 0:00:35]} Qd8 {[%emt 0:01:15]} 17. Nf3 {[%emt 0:13:50]} Bf6 {[%emt 0:03:
23]} 18. Bd3 {[%emt 0:05:19]} Bg7 {[%emt 0:07:20]} 19. Bd6 {[%emt 0:02:47]}
Bxd3 {[%emt 0:03:08]} 20. Qxd3 {[%emt 0:00:59]} Re8 {[%emt 0:00:54]} 21. Ne5 {
[%emt 0:03:49]} f6 {[%emt 0:01:31]} 22. Nxd7 {[%emt 0:01:47]} Qxd7 {[%emt 0:00:
30]} 23. Rae1 {[%emt 0:01:19]} Rad8 {[%emt 0:06:15]} 24. Re3 {[%emt 0:03:28]}
Qb5 {[%emt 0:01:08]} 25. Qb1 {[%emt 0:06:04]} Kh8 {[%emt 0:05:18]} 26. Rh3 {
[%emt 0:03:26]} f5 {[%emt 0:00:50]} 27. Qd1 {[%emt 0:03:31]} Qd7 {[%emt 0:03:
01]} 28. Qh5 {[%emt 0:01:52]} Bf6 {[%emt 0:03:38]} 29. Qg6 {[%emt 0:00:36]} Qg7
{[%emt 0:02:12]} 30. Rxh7+ {[%emt 0:01:45]} Qxh7 {[%emt 0:00:30]} 31. Qxf6+ {
[%emt 0:00:30]} Kg8 {[%emt 0:00:38]} 32. Rf3 {[%emt 0:01:15]} Rd7 {[%emt 0:01:
21]} 33. Rh3 {[%emt 0:01:22]} Rf7 {[%emt 0:01:04]} 34. Qe5 {[%emt 0:00:40]} 1-0

[Event "12th Philadelphia Open"]
[Site "Philadelphia"]
[Date "2018.03.30"]
[Round "5.4"]
[White "Burke, John M"]
[Black "Panchanatham, Vignesh"]
[Result "1/2-1/2"]
[ECO "C13"]
[WhiteElo "2525"]
[BlackElo "2384"]
[PlyCount "194"]
[EventDate "2018.03.??"]
[EventType "swiss"]
[EventRounds "9"]
[EventCountry "USA"]
[TimeControl "5400+30"]
[WhiteClock "0:00:15"]
[BlackClock "0:10:00"]

1. e4 {[%emt 0:00:00]} e6 {[%emt 0:00:00]} 2. d4 {[%emt 0:00:00]} d5 {[%emt 0:
00:00]} 3. Nc3 {[%emt 0:00:00]} Nf6 {[%emt 0:00:00]} 4. Bg5 {[%emt 0:00:00]}
Be7 {[%emt 0:00:00]} 5. e5 {[%emt 0:00:00]} Nfd7 {[%emt 0:00:00]} 6. h4 {
[%emt 0:00:00]} Bxg5 {[%emt 0:00:00]} 7. hxg5 Qxg5 {[%emt 0:00:00]} 8. Qd3 {
[%emt 0:00:00]} h5 {[%emt 0:00:00]} 9. Nf3 {[%emt 0:00:00]} Qe7 {[%emt 0:00:00]
} 10. g4 {[%emt 0:00:00]} g6 {[%emt 0:00:00]} 11. O-O-O {[%emt 0:00:00]} Nc6 {
[%emt 0:00:00]} 12. gxh5 {[%emt 0:00:00]} gxh5 {[%emt 0:00:00]} 13. Be2 {
[%emt 0:00:00]} Nf8 {[%emt 0:00:00]} 14. Rh2 {[%emt 0:03:15]} h4 {[%emt 0:00:
00]} 15. Rdh1 {[%emt 0:01:07]} Bd7 {[%emt 0:04:19]} 16. Rxh4 {[%emt 0:06:18]}
Rxh4 {[%emt 0:00:30]} 17. Rxh4 {[%emt 0:00:44]} f6 {[%emt 0:03:00]} 18. exf6 {
[%emt 0:04:33]} Qxf6 {[%emt 0:00:30]} 19. Nd1 {[%emt 0:00:46]} O-O-O {[%emt 0:
03:08]} 20. Ne3 {[%emt 0:01:41]} Ng6 {[%emt 0:10:29]} 21. Rh6 {[%emt 0:06:43]}
Be8 {[%emt 0:02:07]} 22. Qd2 {[%emt 0:11:49]} Qf4 {[%emt 0:11:54]} 23. Ng2 {
[%emt 0:04:33]} Qf8 {[%emt 0:16:31]} 24. Qg5 {[%emt 0:06:12]} Nce7 {[%emt 0:05:
02]} 25. Kb1 {[%emt 0:07:38]} Qf5 {[%emt 0:03:53]} 26. Qg3 {[%emt 0:05:43]} Qf8
{[%emt 0:02:19]} 27. Qg5 {[%emt 0:02:44]} Qf5 {[%emt 0:00:31]} 28. Ne3 {
[%emt 0:00:50]} Qf4 {[%emt 0:04:18]} 29. Rh7 {[%emt 0:06:01]} Nc6 {[%emt 0:03:
24]} 30. Qg4 {[%emt 0:06:55]} Qxg4 {[%emt 0:01:44]} 31. Nxg4 {[%emt 0:00:36]}
Nf4 {[%emt 0:00:30]} 32. Bb5 {[%emt 0:03:30]} Bg6 {[%emt 0:02:57]} 33. Rh4 {
[%emt 0:00:30]} Ng2 {[%emt 0:07:54]} 34. Rh2 {[%emt 0:04:13]} Be4 {[%emt 0:03:
10]} 35. Bxc6 {[%emt 0:02:59]} Bxf3 {[%emt 0:01:18]} 36. Ne5 {[%emt 0:00:30]}
Ne1 {[%emt 0:01:04]} 37. Ba4 {[%emt 0:02:14]} Be4 {[%emt 0:00:52]} 38. Rh6 {
[%emt 0:02:22]} c6 {[%emt 0:03:00]} 39. Rf6 {[%emt 0:03:13]} Rh8 {[%emt 0:06:
16]} 40. Kc1 {[%emt 0:01:03]} Rh3 {[%emt 0:00:42]} 41. Kd2 {[%emt 0:02:26]}
Nf3+ {[%emt 0:00:43]} 42. Nxf3 {[%emt 0:00:30]} Rxf3 {[%emt 0:00:30]} 43. Rxf3
{[%emt 0:00:30]} Bxf3 {[%emt 0:00:30]} 44. Ke3 {[%emt 0:00:30]} Bd1 {[%emt 0:
00:30]} 45. Kf4 {[%emt 0:00:47]} a5 {[%emt 0:02:54]} 46. Bb3 {[%emt 0:00:39]}
b5 {[%emt 0:00:59]} 47. c3 {[%emt 0:05:58]} Be2 {[%emt 0:02:37]} 48. Ke5 {
[%emt 0:00:53]} Kd7 {[%emt 0:00:30]} 49. Bc2 {[%emt 0:00:00]} a4 {[%emt 0:00:
00]} 50. Bg6 {[%emt 0:00:00]} Ke7 {[%emt 0:00:00]} 51. Bh7 {[%emt 0:00:00]} Bg4
{[%emt 0:00:00]} 52. Bd3 {[%emt 0:00:00]} Bd1 {[%emt 0:00:00]} 53. Bf1 {
[%emt 0:00:00]} Bg4 {[%emt 0:00:00]} 54. Bg2 {[%emt 0:00:00]} Bf5 {[%emt 0:00:
00]} 55. Bf3 {[%emt 0:00:00]} Bh3 {[%emt 0:00:00]} 56. Bh5 {[%emt 0:00:00]} Bf5
{[%emt 0:00:00]} 57. f3 {[%emt 0:00:00]} Bh7 {[%emt 0:00:00]} 58. Bg4 {[%emt 0:
01:30]} Bg8 {[%emt 0:00:00]} 59. Bh3 {[%emt 0:02:25]} Bf7 {[%emt 0:00:00]} 60.
Bf1 {[%emt 0:01:28]} Bg6 {[%emt 0:00:00]} 61. Bh3 {[%emt 0:00:30]} Bf7 {
[%emt 0:00:00]} 62. f4 {[%emt 0:00:30]} Bg8 {[%emt 0:00:00]} 63. Bg4 {[%emt 0:
00:46]} Bf7 {[%emt 0:00:00]} 64. f5 {[%emt 0:01:16]} exf5 {[%emt 0:00:00]} 65.
Bxf5 {[%emt 0:00:30]} Be8 {[%emt 0:00:00]} 66. Be6 {[%emt 0:01:11]} Bd7 {
[%emt 0:00:00]} 67. Bxd7 {[%emt 0:00:33]} Kxd7 {[%emt 0:00:00]} 68. Kf6 {
[%emt 0:00:33]} Kd6 {[%emt 0:00:00]} 69. Kf7 {[%emt 0:00:34]} a3 {[%emt 0:01:
17]} 70. b3 {[%emt 0:00:30]} b4 {[%emt 0:02:09]} 71. cxb4 {[%emt 0:00:30]} Kc7
{[%emt 0:00:30]} 72. Ke6 {[%emt 0:01:32]} Kb6 {[%emt 0:00:30]} 73. Kd6 {
[%emt 0:00:38]} Kb5 {[%emt 0:00:30]} 74. Kc7 {[%emt 0:00:30]} Kxb4 {[%emt 0:00:
30]} 75. Kxc6 {[%emt 0:00:30]} Kc3 {[%emt 0:00:30]} 76. Kxd5 {[%emt 0:00:45]}
Kb2 {[%emt 0:00:30]} 77. b4 {[%emt 0:00:30]} Kxa2 {[%emt 0:00:30]} 78. b5 {
[%emt 0:00:30]} Kb3 {[%emt 0:00:42]} 79. b6 {[%emt 0:00:30]} a2 {[%emt 0:00:30]
} 80. b7 {[%emt 0:00:30]} a1=Q {[%emt 0:00:30]} 81. b8=Q+ {[%emt 0:00:30]} Kc3
{[%emt 0:00:41]} 82. Qg3+ {[%emt 0:00:30]} Kb4 {[%emt 0:00:31]} 83. Qd6+ {
[%emt 0:00:30]} Kc3 {[%emt 0:00:33]} 84. Qc5+ {[%emt 0:00:30]} Kd3 {[%emt 0:00:
30]} 85. Qc4+ {[%emt 0:00:30]} Ke3 {[%emt 0:00:30]} 86. Qb3+ {[%emt 0:00:30]}
Kf4 {[%emt 0:00:30]} 87. Qb8+ {[%emt 0:00:30]} Ke3 {[%emt 0:00:30]} 88. Qg3+ {
[%emt 0:00:30]} Kd2 {[%emt 0:00:30]} 89. Ke5 {[%emt 0:00:30]} Ke2 {[%emt 0:01:
04]} 90. Qb3 {[%emt 0:00:30]} Kd2 {[%emt 0:00:30]} 91. Kd5 {[%emt 0:00:32]}
Qa8+ {[%emt 0:00:40]} 92. Kc5 {[%emt 0:00:30]} Qc8+ {[%emt 0:00:48]} 93. Kd6 {
[%emt 0:00:30]} Qd8+ {[%emt 0:00:30]} 94. Kc5 {[%emt 0:00:30]} Qc8+ {[%emt 0:
00:30]} 95. Kb4 {[%emt 0:00:37]} Qf8+ {[%emt 0:00:30]} 96. Kc4 {[%emt 0:00:30]}
Qc8+ {[%emt 0:00:30]} 97. Kb4 {[%emt 0:00:30]} Qf8+ {[%emt 0:00:30]} 1/2-1/2

[Event "12th Philadelphia Open"]
[Site "Philadelphia"]
[Date "2018.03.31"]
[Round "6"]
[White "Balakrishnan, Praveen"]
[Black "Wong, Jianwen"]
[Result "0-1"]
[ECO "A50"]
[WhiteElo "2405"]
[BlackElo "2153"]
[PlyCount "102"]
[EventDate "2018.03.??"]
[EventType "swiss"]
[EventRounds "9"]
[EventCountry "USA"]
[TimeControl "5400+30"]

1. d4 Nf6 2. c4 Nc6 3. Nf3 e6 4. g3 Bb4+ 5. Bd2 Qe7 6. Nc3 a5 7. Bg2 d6 8. O-O
O-O 9. Qc2 Bxc3 10. Bxc3 e5 11. d5 Nb8 12. Nd2 Nbd7 13. b3 Ne8 14. e4 Nc5 15.
a3 Bd7 16. b4 axb4 17. axb4 Rxa1 18. Rxa1 Na6 19. Nb3 f5 20. Na5 Bc8 21. exf5
Nb8 22. f4 exf4 23. Re1 Qg5 24. Qd2 Qxf5 25. gxf4 Nf6 26. c5 Nh5 27. cxd6 cxd6
28. Nc4 Qg6 29. Kh1 b5 30. Be4 Qh6 31. Nxd6 Qxd6 32. Be5 Qh6 33. Bxb8 Ng3+ 34.
Kg1 Nxe4 35. Rxe4 Qg6+ 36. Qg2 Bf5 37. Qxg6 hxg6 38. Re5 Rxb8 39. Kf2 Kf7 40.
Ke3 Rc8 41. d6 Re8 42. Kd4 Rxe5 43. Kxe5 Bd7 44. h4 Bg4 45. Kd5 Bf3+ 46. Ke5
Bc6 47. f5 gxf5 48. Kxf5 Bd7+ 49. Kg5 Ke6 50. Kg6 Kxd6 51. Kxg7 Bg4 0-1

[Event "12th Philadelphia Open"]
[Site "Philadelphia"]
[Date "2018.03.31"]
[Round "6"]
[White "Goletiani, Rusudan"]
[Black "Mujumdar, Sameer"]
[Result "0-1"]
[ECO "E94"]
[WhiteElo "2306"]
[BlackElo "2092"]
[PlyCount "128"]
[EventDate "2018.03.??"]
[EventType "swiss"]
[EventRounds "9"]
[EventCountry "USA"]
[TimeControl "5400+30"]

1. c4 Nf6 2. Nf3 g6 3. Nc3 Bg7 4. e4 d6 5. d4 O-O 6. Be2 Na6 7. O-O e5 8. Re1
exd4 9. Nxd4 Nc5 10. f3 a5 11. Bg5 c6 12. Kh1 Nfxe4 13. Nxe4 Nxe4 14. Be3 Nf6
15. Qd2 Re8 16. Rad1 Be6 17. Bh6 Bxh6 18. Qxh6 Qb6 19. Qf4 Nh5 20. Qd2 Rad8 21.
Bf1 Qb4 22. Qc1 Ng7 23. Bd3 Bc8 24. f4 Qc5 25. Qc3 Bg4 26. Rc1 Qb4 27. Rf1 Ne6
28. Nb3 Qxc3 29. Rxc3 Nc5 30. Bc2 Na4 31. Rg3 Be2 32. Rb1 Bxc4 33. Nxa5 Bxa2
34. Ra1 Nb6 35. h4 Bd5 36. Nxb7 Rd7 37. Na5 Re2 38. Bb3 Ra7 39. Bxd5 Nxd5 40.
Rga3 Rxb2 41. f5 Rc2 42. Nb3 Rxa3 43. Rxa3 Kg7 44. Ra7 Ne3 45. fxg6 hxg6 46.
Nd4 Rc4 47. Ne6+ Kf6 48. Nd8 Rxh4+ 49. Kg1 c5 50. Rxf7+ Ke5 51. Re7+ Kd4 52.
Ne6+ Kc4 53. Nxc5 dxc5 54. Rxe3 Rf4 55. Re1 Kd5 56. Kh2 c4 57. Kg3 Rf6 58. Rd1+
Kc5 59. Rc1 Kd4 60. Rd1+ Kc3 61. Kg4 Kc2 62. Rd7 c3 63. Kg5 Rb6 64. Kf4 Kb2 0-1

[Event "12th Philadelphia Open"]
[Site "Philadelphia"]
[Date "2018.03.31"]
[Round "6"]
[White "Homa, Seth"]
[Black "Zhu, Evelyn"]
[Result "1-0"]
[ECO "A11"]
[WhiteElo "2247"]
[BlackElo "2016"]
[PlyCount "91"]
[EventDate "2018.03.??"]
[EventType "swiss"]
[EventRounds "9"]
[EventCountry "USA"]
[TimeControl "5400+30"]

1. c4 c6 2. Nf3 d5 3. e3 Nf6 4. Nc3 a6 5. Qc2 g6 6. b3 Bg7 7. Bb2 O-O 8. d4 Bf5
9. Bd3 Bxd3 10. Qxd3 Nbd7 11. O-O Re8 12. Rfd1 Qb6 13. Rac1 Rac8 14. h3 Qa7 15.
Rc2 Qb8 16. e4 dxe4 17. Nxe4 Rcd8 18. Nxf6+ Bxf6 19. Qe4 Nc5 20. Qe3 Ne6 21.
Rcd2 Ng7 22. Qe2 Ne6 23. g3 Nc7 24. Ba3 Qc8 25. Kg2 Ne6 26. Qe4 Ng5 27. Nxg5
Bxg5 28. Rd3 Bf6 29. Bc1 Rd7 30. Bh6 Red8 31. h4 Bg7 32. Bxg7 Kxg7 33. h5 Qc7
34. Rh1 Qd6 35. Rh4 Qf6 36. d5 cxd5 37. cxd5 e6 38. hxg6 hxg6 39. Rf3 exd5 40.
Qe3 Qb2 41. Qh6+ Kg8 42. Qh7+ Kf8 43. Qxg6 Qg7 44. Qf5 Re7 45. Rh7 Qg8 46. Qh5
1-0

[Event "12th Philadelphia Open"]
[Site "Philadelphia"]
[Date "2018.03.31"]
[Round "6"]
[White "Katz, Alexander"]
[Black "Yanayt, Eugene"]
[Result "1-0"]
[ECO "B75"]
[WhiteElo "2347"]
[BlackElo "2127"]
[PlyCount "57"]
[EventDate "2018.03.??"]
[EventType "swiss"]
[EventRounds "9"]
[EventCountry "USA"]
[TimeControl "5400+30"]

1. e4 c5 2. Nf3 d6 3. d4 cxd4 4. Nxd4 Nf6 5. Nc3 g6 6. Be3 Bg7 7. f3 Nc6 8. Qd2
O-O 9. O-O-O Nxd4 10. Bxd4 Qa5 11. Kb1 Rd8 12. h4 Be6 13. Qg5 d5 14. e5 Nd7 15.
h5 h6 16. Qe3 g5 17. f4 gxf4 18. Qxf4 Nc5 19. Bd3 Ne4 20. g4 Rac8 21. Ne2 Rc6
22. Rdg1 f6 23. exf6 Bxf6 24. Bxf6 exf6 25. Qxh6 Bf7 26. g5 fxg5 27. Rxg5+ Nxg5
28. Qxg5+ Kf8 29. h6 1-0

[Event "12th Philadelphia Open"]
[Site "Philadelphia"]
[Date "2018.03.31"]
[Round "6"]
[White "Kretchetov, Alexandre"]
[Black "Li, Ben"]
[Result "0-1"]
[ECO "D45"]
[WhiteElo "2244"]
[BlackElo "2347"]
[PlyCount "88"]
[EventDate "2018.03.??"]
[EventType "swiss"]
[EventRounds "9"]
[EventCountry "USA"]
[TimeControl "5400+30"]

1. Nf3 d5 2. d4 Nf6 3. c4 e6 4. Nc3 c6 5. e3 Nbd7 6. Qc2 b6 7. b3 Bb7 8. Be2
Rc8 9. O-O c5 10. Bb2 cxd4 11. Nxd4 dxc4 12. Bxc4 Bd6 13. Qe2 O-O 14. Rfd1 Qe7
15. Rac1 Nc5 16. f3 Rfd8 17. a3 Ncd7 18. Ba6 Ne5 19. Bxb7 Qxb7 20. Ncb5 Bb8 21.
Rxc8 Rxc8 22. e4 h5 23. Nc2 Qe7 24. Nb4 Ng6 25. Na6 Be5 26. Bxe5 Nxe5 27. Qb2
Ng6 28. Qd2 Kh7 29. a4 e5 30. Qd6 Qxd6 31. Nxd6 Rc2 32. g3 Kg8 33. Nf5 h4 34.
gxh4 Nf4 35. Rd8+ Kh7 36. Rf8 Nh3+ 37. Kf1 Rf2+ 38. Ke1 Rxf3 39. Rxf7 Nxe4 40.
Rxg7+ Kh8 41. Rf7 Nf4 42. Kd1 Rf1+ 43. Kc2 Rf2+ 44. Kd1 Nc3+ 0-1

[Event "12th Philadelphia Open"]
[Site "Philadelphia"]
[Date "2018.03.31"]
[Round "6"]
[White "Miyasaka, Marcus"]
[Black "Niemann, Hans"]
[Result "1/2-1/2"]
[ECO "C07"]
[WhiteElo "2134"]
[BlackElo "2302"]
[PlyCount "91"]
[EventDate "2018.03.??"]
[EventType "swiss"]
[EventRounds "9"]
[EventCountry "USA"]
[TimeControl "5400+30"]

1. e4 e6 2. d4 d5 3. Nd2 c5 4. exd5 Qxd5 5. Ngf3 cxd4 6. Bc4 Qd7 7. O-O Nc6 8.
Nb3 a6 9. Nbxd4 Nxd4 10. Nxd4 Qc7 11. Qe2 Bd6 12. Re1 Ne7 13. h3 O-O 14. Bd3 e5
15. Nf3 f6 16. c4 Bf5 17. Bxf5 Nxf5 18. b3 Qc6 19. Bb2 Rad8 20. Rac1 Bc5 21.
Rcd1 Ng3 22. Qc2 Rxd1 23. Rxd1 Ne4 24. Rf1 Rd8 25. Kh1 a5 26. Bc3 b6 27. Be1
Rd7 28. Nd2 Ng5 29. h4 Ne6 30. f3 Be3 31. Ne4 Nc5 32. Nc3 Nd3 33. Bg3 Bh6 34.
Rd1 Nb4 35. Qe2 Kf7 36. a3 Na6 37. Bf2 Nc5 38. b4 axb4 39. axb4 Rxd1+ 40. Qxd1
Nd7 41. Qd5+ Qxd5 42. Nxd5 Bd2 43. Kg1 b5 44. cxb5 Ke6 45. Nc7+ Kd6 46. Na6
1/2-1/2

[Event "12th Philadelphia Open"]
[Site "Philadelphia"]
[Date "2018.03.31"]
[Round "6"]
[White "Mulyar, Michael"]
[Black "Shabalov, Alexander"]
[Result "0-1"]
[ECO "D43"]
[WhiteElo "2396"]
[BlackElo "2568"]
[PlyCount "96"]
[EventDate "2018.03.??"]
[EventType "swiss"]
[EventRounds "9"]
[EventCountry "USA"]
[TimeControl "5400+30"]

1. d4 d5 2. c4 c6 3. Nf3 e6 4. Bg5 Nf6 5. Nc3 Nbd7 6. cxd5 exd5 7. e3 h6 8. Bh4
g5 9. Bg3 Nh5 10. Qc2 Nxg3 11. hxg3 Bg7 12. O-O-O Nb6 13. Bd3 Be6 14. Ne5 Qe7
15. f4 O-O-O 16. Rhe1 Kb8 17. e4 gxf4 18. gxf4 Bxe5 19. fxe5 c5 20. dxc5 Qxc5
21. Nxd5 Qa5 22. b4 Qa3+ 23. Qb2 Qxb2+ 24. Kxb2 Nxd5 25. exd5 Rxd5 26. Bc2 Rg8
27. Rxd5 Bxd5 28. Rd1 Bc6 29. Bb3 Rxg2+ 30. Kc3 Re2 31. Rd8+ Kc7 32. Rf8 Re3+
33. Kd4 Re4+ 34. Kc3 Rxe5 35. Rxf7+ Kb6 36. Rf6 Re3+ 37. Kb2 Rh3 38. Ba4 a6 39.
Bxc6 bxc6 40. a4 h5 41. Rh6 Rh1 42. Kb3 h4 43. Rh7 a5 44. bxa5+ Kxa5 45. Rh5+
Ka6 46. Rh6 Kb7 47. a5 h3 48. a6+ Ka7 0-1

[Event "12th Philadelphia Open"]
[Site "Philadelphia"]
[Date "2018.03.31"]
[Round "6"]
[White "Otchiyev, Arslan"]
[Black "Popilski, Gil"]
[Result "0-1"]
[ECO "C03"]
[WhiteElo "2369"]
[BlackElo "2502"]
[PlyCount "76"]
[EventDate "2018.03.??"]
[EventType "swiss"]
[EventRounds "9"]
[EventCountry "USA"]
[TimeControl "5400+30"]

1. e4 e6 2. d4 d5 3. Nd2 a6 4. Ngf3 c5 5. exd5 exd5 6. Be2 Nc6 7. O-O Nf6 8.
Re1 Be6 9. dxc5 Bxc5 10. Nb3 Bb6 11. Nbd4 O-O 12. Bg5 Bg4 13. c3 Qd6 14. h3 Bd7
15. Bd3 Rfe8 16. Qd2 Nxd4 17. cxd4 Ne4 18. Qf4 Qxf4 19. Bxf4 f6 20. Bc2 g5 21.
Bb3 Bc6 22. Be3 Re7 23. Red1 Rae8 24. Nd2 Ng3 25. Nf1 Ne4 26. Nd2 Nd6 27. g4
Rxe3 28. fxe3 Rxe3 29. Nf1 Re2 30. Rab1 Ne4 31. Re1 Bxd4+ 32. Kh1 Rxe1 33. Rxe1
Kf8 34. Ne3 Bxe3 35. Rxe3 d4 36. Rxe4 Bxe4+ 37. Kg1 Ke7 38. Kf2 Kd6 0-1

[Event "12th Philadelphia Open"]
[Site "Philadelphia"]
[Date "2018.03.31"]
[Round "6"]
[White "Saravanan, V."]
[Black "Kumar, Naman"]
[Result "1/2-1/2"]
[ECO "C19"]
[WhiteElo "2326"]
[BlackElo "2045"]
[PlyCount "40"]
[EventDate "2018.03.??"]
[EventType "swiss"]
[EventRounds "9"]
[EventCountry "USA"]
[TimeControl "5400+30"]

1. e4 e6 2. d4 d5 3. Nc3 Bb4 4. e5 c5 5. a3 Bxc3+ 6. bxc3 Ne7 7. Nf3 Qc7 8. h4
Bd7 9. h5 h6 10. Bd3 Ba4 11. O-O Nbc6 12. Re1 c4 13. Bf1 O-O-O 14. Nh4 g5 15.
Nf3 Ng8 16. Nh2 f5 17. exf6 Nxf6 18. Re3 Kb8 19. Be2 Rde8 20. Rh3 Qh7 1/2-1/2

[Event "12th Philadelphia Open"]
[Site "Philadelphia"]
[Date "2018.03.31"]
[Round "6"]
[White "Subervi, Jonathan"]
[Black "Shetty, Atulya"]
[Result "1/2-1/2"]
[ECO "D00"]
[WhiteElo "2145"]
[BlackElo "2391"]
[PlyCount "78"]
[EventDate "2018.03.??"]
[EventType "swiss"]
[EventRounds "9"]
[EventCountry "USA"]
[TimeControl "5400+30"]

1. d4 d5 2. Bf4 Nf6 3. e3 c5 4. c3 Nc6 5. Nd2 e6 6. Ngf3 Be7 7. Bd3 Nh5 8. Be5
f6 9. Bg3 g6 10. Qe2 Qb6 11. O-O-O Qa5 12. dxc5 Qxa2 13. Kc2 Qa4+ 14. Nb3 e5
15. Nfd4 exd4 16. Ra1 Qxa1 17. Rxa1 dxc3 18. bxc3 Nxg3 19. hxg3 Ne5 20. Bb5+
Kf7 21. f4 Nc6 22. g4 h5 23. gxh5 Rxh5 24. g4 Rh4 25. Rg1 Bd7 26. Qf3 Rah8 27.
Bd3 Kg7 28. Qxd5 Bxg4 29. Nd4 R8h5 30. Qe4 Rh2+ 31. Kb1 f5 32. Qd5 Rd2 33. Bc4
Kh6 34. Qg8 Bf6 35. Nxc6 bxc6 36. Qe6 Bxc3 37. Qxc6 Rhh2 38. Rh1 Rb2+ 39. Kc1
Rbc2+ 1/2-1/2

[Event "12th Philadelphia Open"]
[Site "Philadelphia"]
[Date "2018.03.31"]
[Round "6"]
[White "Tang, Andrew"]
[Black "Guo, Arthur"]
[Result "1-0"]
[ECO "E32"]
[WhiteElo "2509"]
[BlackElo "2208"]
[PlyCount "89"]
[EventDate "2018.03.??"]
[EventType "swiss"]
[EventRounds "9"]
[EventCountry "USA"]
[TimeControl "5400+30"]

1. d4 Nf6 2. c4 e6 3. Nc3 Bb4 4. Qc2 O-O 5. Nf3 c5 6. dxc5 Na6 7. g3 Nxc5 8.
Bg2 b6 9. O-O Bb7 10. Nb5 Be4 11. Qd1 Nb7 12. a3 Be7 13. Bf4 a6 14. Nc3 Bc6 15.
b4 Ne4 16. Nxe4 Bxe4 17. Qb3 Bf6 18. Rac1 Qe7 19. Qe3 Bc6 20. Qxb6 Rfc8 21. Qe3
d6 22. Qd2 a5 23. Be3 axb4 24. axb4 Ra4 25. Rfd1 Rca8 26. b5 Be4 27. Bd4 e5 28.
Bb6 Rc8 29. Qe3 Bg6 30. Qb3 Rca8 31. c5 dxc5 32. Nxe5 Qxe5 33. Bxb7 Rb4 34. Qd5
Re8 35. Bxc5 Qxd5 36. Bxd5 Rb2 37. b6 Be5 38. Bc6 Rb8 39. b7 h5 40. Ba7 Rf8 41.
Bf3 Bf5 42. Rd5 f6 43. b8=Q Rbxb8 44. Bxb8 Rxb8 45. Bxh5 1-0

[Event "12th Philadelphia Open"]
[Site "Philadelphia"]
[Date "2018.03.31"]
[Round "6.1"]
[White "Zhou, Jianchao"]
[Black "Sevian, Samuel"]
[Result "1/2-1/2"]
[ECO "C15"]
[WhiteElo "2611"]
[BlackElo "2619"]
[PlyCount "32"]
[EventDate "2018.03.??"]
[EventType "swiss"]
[EventRounds "9"]
[EventCountry "USA"]
[TimeControl "5400+30"]
[WhiteClock "0:50:54"]
[BlackClock "1:31:29"]

1. e4 {[%emt 0:00:00]} e6 {[%emt 0:00:00]} 2. d4 {[%emt 0:00:00]} d5 {[%emt 0:
00:00]} 3. Nc3 {[%emt 0:00:00]} Bb4 {[%emt 0:00:00]} 4. exd5 exd5 {[%emt 0:00:
00]} 5. Bd3 {[%emt 0:00:00]} Nf6 {[%emt 0:00:00]} 6. Nge2 {[%emt 0:00:00]} O-O
{[%emt 0:00:00]} 7. O-O {[%emt 0:00:00]} c6 {[%emt 0:00:00]} 8. Ng3 {[%emt 0:
00:00]} Re8 {[%emt 0:00:00]} 9. h3 {[%emt 0:00:00]} Nbd7 {[%emt 0:00:00]} 10.
Qf3 {[%emt 0:00:00]} Nf8 {[%emt 0:00:00]} 11. a3 {[%emt 0:22:47]} Be7 {[%emt 0:
00:00]} 12. Bd2 {[%emt 0:06:01]} Ng6 {[%emt 0:01:15]} 13. Rfe1 {[%emt 0:12:48]}
Nh4 {[%emt 0:02:27]} 14. Qf4 {[%emt 0:01:43]} Ng6 {[%emt 0:00:30]} 15. Qf3 {
[%emt 0:00:30]} Nh4 {[%emt 0:01:03]} 16. Qf4 {[%emt 0:03:17]} Ng6 {[%emt 0:01:
46]} 1/2-1/2

[Event "12th Philadelphia Open"]
[Site "Philadelphia"]
[Date "2018.03.31"]
[Round "6.2"]
[White "Azarov, Sergei"]
[Black "Checa, Nicolas"]
[Result "1/2-1/2"]
[ECO "D45"]
[WhiteElo "2570"]
[BlackElo "2485"]
[PlyCount "37"]
[EventDate "2018.03.??"]
[EventType "swiss"]
[EventRounds "9"]
[EventCountry "USA"]
[TimeControl "5400+30"]
[WhiteClock "1:11:39"]
[BlackClock "1:14:27"]

1. d4 {[%emt 0:00:00]} d5 {[%emt 0:00:00]} 2. c4 {[%emt 0:00:00]} c6 {[%emt 0:
00:00]} 3. Nc3 {[%emt 0:00:00]} Nf6 {[%emt 0:00:00]} 4. e3 {[%emt 0:00:00]} e6
{[%emt 0:00:00]} 5. Nf3 {[%emt 0:00:00]} Nbd7 {[%emt 0:00:00]} 6. Be2 {[%emt 0:
00:00]} Bd6 {[%emt 0:00:00]} 7. O-O {[%emt 0:00:00]} O-O {[%emt 0:00:00]} 8. a4
{[%emt 0:00:00]} a5 {[%emt 0:00:00]} 9. b3 {[%emt 0:00:00]} b6 {[%emt 0:00:00]}
10. Bb2 {[%emt 0:02:16]} Bb7 {[%emt 0:00:00]} 11. Qc2 {[%emt 0:05:05]} Rc8 {
[%emt 0:00:00]} 12. Rac1 {[%emt 0:03:25]} Qe7 {[%emt 0:01:39]} 13. Qb1 {
[%emt 0:05:49]} Rfe8 {[%emt 0:07:22]} 14. Rfd1 {[%emt 0:01:09]} h6 {[%emt 0:03:
34]} 15. h3 {[%emt 0:01:58]} Qf8 {[%emt 0:06:02]} 16. Qa1 {[%emt 0:05:01]} Qe7
{[%emt 0:05:04]} 17. Qb1 {[%emt 0:01:57]} Qf8 {[%emt 0:00:52]} 18. Qa1 {
[%emt 0:00:41]} Qe7 {[%emt 0:00:30]} 19. Qb1 {[%emt 0:00:30]} 1/2-1/2